[Event "*** Titled Tuesday Blitz"]
[Site "Chess.com"]
[Date "2020.12.29"]
[Round "5"]
[White "ShapkinAnatoliy"]
[Black "Jospem"]
[Result "0-1"]
[WhiteElo "2706"]
[BlackElo "2989"]
[TimeControl "180+1"]
[EndTime "10:55:03 PST"]
[Termination "Jospem won by resignation"]

1. d4 {[%clk 0:02:56.8]} 1... Nf6 {[%clk 0:03:00.1]} 2. c4 {[%clk 0:02:56.9]}
2... e6 {[%clk 0:03:00.5]} 3. g3 {[%clk 0:02:57.1]} 3... Bb4+ {[%clk 0:02:58.1]}
4. Bd2 {[%clk 0:02:57]} 4... c5 {[%clk 0:02:57.9]} 5. Bxb4 {[%clk 0:02:55.6]}
5... cxb4 {[%clk 0:02:58.8]} 6. Bg2 {[%clk 0:02:55.7]} 6... a5 {[%clk
0:02:58.9]} 7. e3 {[%clk 0:02:55.4]} 7... O-O {[%clk 0:02:58.5]} 8. Ne2 {[%clk
0:02:55.7]} 8... d6 {[%clk 0:02:47.2]} 9. a3 {[%clk 0:02:52.1]} 9... Na6 {[%clk
0:02:46.9]} 10. O-O {[%clk 0:02:49.8]} 10... Rb8 {[%clk 0:02:40]} 11. axb4
{[%clk 0:02:48.9]} 11... Nxb4 {[%clk 0:02:40.9]} 12. Nbc3 {[%clk 0:02:47.5]}
12... b6 {[%clk 0:02:38.5]} 13. b3 {[%clk 0:02:38.5]} 13... Bb7 {[%clk 0:02:33]}
14. e4 {[%clk 0:02:31.8]} 14... e5 {[%clk 0:02:28.9]} 15. Qd2 {[%clk 0:02:28.2]}
15... Re8 {[%clk 0:02:24.6]} 16. Rfe1 {[%clk 0:02:28]} 16... Qc7 {[%clk
0:02:07.9]} 17. h3 {[%clk 0:02:22.1]} 17... Rbd8 {[%clk 0:02:07.2]} 18. Kh2
{[%clk 0:02:19.3]} 18... h5 {[%clk 0:02:05.5]} 19. f4 {[%clk 0:01:54.7]} 19...
Bc6 {[%clk 0:01:59.7]} 20. Rac1 {[%clk 0:01:46]} 20... Qb8 {[%clk 0:01:54.7]}
21. Nd5 {[%clk 0:01:35.8]} 21... Bxd5 {[%clk 0:01:53.4]} 22. cxd5 {[%clk
0:01:31.9]} 22... Rc8 {[%clk 0:01:49.3]} 23. Rxc8 {[%clk 0:01:24.9]} 23... Rxc8
{[%clk 0:01:50.2]} 24. Rc1 {[%clk 0:01:08.3]} 24... Re8 {[%clk 0:01:38]} 25.
dxe5 {[%clk 0:01:03.2]} 25... dxe5 {[%clk 0:01:38]} 26. f5 {[%clk 0:00:56.1]}
26... Qd6 {[%clk 0:01:10.2]} 27. Nc3 {[%clk 0:00:50.5]} 27... Qd7 {[%clk
0:01:01.6]} 28. Bf3 {[%clk 0:00:46.5]} 28... Rc8 {[%clk 0:01:00.5]} 29. Kg2
{[%clk 0:00:46.3]} 29... Rc5 {[%clk 0:00:57.8]} 30. Na4 {[%clk 0:00:43.9]} 30...
Rxc1 {[%clk 0:00:52]} 31. Qxc1 {[%clk 0:00:44.8]} 31... Qd8 {[%clk 0:00:47.3]}
32. Qc3 {[%clk 0:00:43.4]} 32... b5 {[%clk 0:00:43.1]} 33. Nb2 {[%clk 0:00:30]}
33... Qb6 {[%clk 0:00:40.1]} 34. g4 {[%clk 0:00:26.3]} 34... hxg4 {[%clk
0:00:39.8]} 35. hxg4 {[%clk 0:00:27.2]} 35... Qd8 {[%clk 0:00:39.1]} 36. Qc5
{[%clk 0:00:19]} 36... Nh7 {[%clk 0:00:17.7]} 37. Qxb5 {[%clk 0:00:12]} 37...
Qg5 {[%clk 0:00:18]} 38. Nc4 {[%clk 0:00:10.3]} 38... Nf6 {[%clk 0:00:13.5]} 39.
Qxa5 {[%clk 0:00:09.7]} 39... Nd3 {[%clk 0:00:11.9]} 40. Qd2 {[%clk 0:00:09.9]}
40... Nf4+ {[%clk 0:00:11]} 41. Kf2 {[%clk 0:00:07.6]} 41... Qh4+ {[%clk
0:00:11.2]} 42. Ke3 {[%clk 0:00:05.6]} 42... Qg3 {[%clk 0:00:11.6]} 43. Qf2
{[%clk 0:00:04.5]} 43... Nxg4+ {[%clk 0:00:11.7]} 0-1

[Event "*** Titled Tuesday Blitz"]
[Site "Chess.com"]
[Date "2020.12.29"]
[Round "5"]
[White "ZiggyStardust64"]
[Black "Slovak_fighter2000"]
[Result "1-0"]
[WhiteElo "2688"]
[BlackElo "2480"]
[TimeControl "180+1"]
[EndTime "10:55:03 PST"]
[Termination "ZiggyStardust64 won on time"]

1. e4 {[%clk 0:03:00.9]} 1... e6 {[%clk 0:01:34.1]} 2. d4 {[%clk 0:02:55.7]}
2... d5 {[%clk 0:01:35]} 3. Nc3 {[%clk 0:02:55.4]} 3... dxe4 {[%clk 0:01:35.5]}
4. Nxe4 {[%clk 0:02:55.3]} 4... Bd7 {[%clk 0:01:36.4]} 5. Nf3 {[%clk 0:02:53.1]}
5... Bc6 {[%clk 0:01:36.8]} 6. Neg5 {[%clk 0:02:49.6]} 6... Nd7 {[%clk
0:01:36.5]} 7. Bd3 {[%clk 0:02:27.7]} 7... Ngf6 {[%clk 0:01:36]} 8. Qe2 {[%clk
0:02:25.3]} 8... Bd6 {[%clk 0:01:36.1]} 9. Nxf7 {[%clk 0:02:11.3]} 9... Kxf7
{[%clk 0:01:37]} 10. Ng5+ {[%clk 0:02:11.4]} 10... Ke8 {[%clk 0:01:37.2]} 11.
Nxe6 {[%clk 0:02:06.7]} 11... Qe7 {[%clk 0:01:36.8]} 12. O-O {[%clk 0:01:59.3]}
12... Bd5 {[%clk 0:01:34.2]} 13. Nxg7+ {[%clk 0:01:51.2]} 13... Kf7 {[%clk
0:01:29.3]} 14. Qxe7+ {[%clk 0:01:51.2]} 14... Bxe7 {[%clk 0:01:27.6]} 15. Nf5
{[%clk 0:01:51.9]} 15... Rae8 {[%clk 0:01:15.3]} 16. Bf4 {[%clk 0:01:34.5]}
16... c6 {[%clk 0:00:59.1]} 17. Nh6+ {[%clk 0:01:34.5]} 17... Kg7 {[%clk
0:00:57.1]} 18. Nf5+ {[%clk 0:01:35.1]} 18... Kf7 {[%clk 0:00:57.3]} 19. Rfe1
{[%clk 0:01:26.8]} 19... Bf8 {[%clk 0:00:47.9]} 20. Rxe8 {[%clk 0:00:47.8]}
20... Nxe8 {[%clk 0:00:48.8]} 21. Re1 {[%clk 0:00:47.6]} 21... Rg8 {[%clk
0:00:37.3]} 22. g3 {[%clk 0:00:47.8]} 22... Be6 {[%clk 0:00:32.6]} 23. Nh4
{[%clk 0:00:40.4]} 23... Nef6 {[%clk 0:00:28.9]} 24. Nf3 {[%clk 0:00:33.6]}
24... h6 {[%clk 0:00:17.3]} 25. c4 {[%clk 0:00:33.7]} 25... Bg4 {[%clk
0:00:15.7]} 26. Nd2 {[%clk 0:00:33]} 26... Bh3 {[%clk 0:00:13.6]} 27. b4 {[%clk
0:00:31]} 27... Bxb4 {[%clk 0:00:11.4]} 28. Rb1 {[%clk 0:00:31.2]} 28... a5
{[%clk 0:00:10.2]} 29. Nb3 {[%clk 0:00:30.2]} 29... b6 {[%clk 0:00:05.7]} 30.
Na1 {[%clk 0:00:24.7]} 30... Be7 {[%clk 0:00:05.8]} 31. Nc2 {[%clk 0:00:24.9]}
31... h5 {[%clk 0:00:05]} 32. Ne3 {[%clk 0:00:25.1]} 32... Ng4 {[%clk
0:00:04.1]} 33. Nf5 {[%clk 0:00:22.2]} 33... Bf6 {[%clk 0:00:04.6]} 34. c5
{[%clk 0:00:21.8]} 34... b5 {[%clk 0:00:04.2]} 35. a4 {[%clk 0:00:22.3]} 35...
b4 {[%clk 0:00:03.1]} 36. Bc4+ {[%clk 0:00:22.1]} 36... Kg6 {[%clk 0:00:03.5]}
37. Bxg8 {[%clk 0:00:23]} 37... Kxf5 {[%clk 0:00:03.9]} 38. d5 {[%clk
0:00:22.1]} 38... Bd4 {[%clk 0:00:02.9]} 39. Be6+ {[%clk 0:00:09.7]} 39... Ke4
{[%clk 0:00:01.8]} 40. Rf1 {[%clk 0:00:10.6]} 40... Kf3 {[%clk 0:00:02]} 41.
Bxg4+ {[%clk 0:00:09.6]} 41... Bxg4 {[%clk 0:00:01.3]} 42. dxc6 {[%clk
0:00:10.5]} 1-0

[Event "*** Titled Tuesday Blitz"]
[Site "Chess.com"]
[Date "2020.12.29"]
[Round "5"]
[White "area_5"]
[Black "Ural_bogatyr"]
[Result "1-0"]
[WhiteElo "2766"]
[BlackElo "2460"]
[TimeControl "180+1"]
[EndTime "10:55:07 PST"]
[Termination "area_5 won by resignation"]

1. c4 {[%clk 0:02:57.2]} 1... Nf6 {[%clk 0:02:58.8]} 2. Nc3 {[%clk 0:02:52.5]}
2... e6 {[%clk 0:02:56.3]} 3. Nf3 {[%clk 0:02:51.5]} 3... d5 {[%clk 0:02:56.4]}
4. d4 {[%clk 0:02:51.2]} 4... c6 {[%clk 0:02:56.2]} 5. Bg5 {[%clk 0:02:47]} 5...
h6 {[%clk 0:02:54]} 6. Bh4 {[%clk 0:02:43.5]} 6... g5 {[%clk 0:02:53.3]} 7. Bg3
{[%clk 0:02:43.2]} 7... Ne4 {[%clk 0:02:54.2]} 8. e3 {[%clk 0:02:42]} 8... Bb4
{[%clk 0:02:47.9]} 9. Qb3 {[%clk 0:02:40.2]} 9... Qa5 {[%clk 0:02:33.1]} 10. Rc1
{[%clk 0:02:38]} 10... Nd7 {[%clk 0:02:09.3]} 11. Bd3 {[%clk 0:02:34.1]} 11...
f5 {[%clk 0:02:06.9]} 12. Bxe4 {[%clk 0:02:26.9]} 12... dxe4 {[%clk 0:02:02.5]}
13. Ne5 {[%clk 0:02:26.5]} 13... O-O {[%clk 0:01:58]} 14. Nxd7 {[%clk
0:02:21.2]} 14... Bxd7 {[%clk 0:01:58.9]} 15. Be5 {[%clk 0:02:21.3]} 15... c5
{[%clk 0:01:28.8]} 16. a3 {[%clk 0:02:00.4]} 16... Bxc3+ {[%clk 0:01:17.7]} 17.
Qxc3 {[%clk 0:01:59.9]} 17... Qxc3+ {[%clk 0:01:16.3]} 18. Rxc3 {[%clk
0:02:00.4]} 18... cxd4 {[%clk 0:01:11.4]} 19. exd4 {[%clk 0:01:59.9]} 19... Bc6
{[%clk 0:01:11.4]} 20. h4 {[%clk 0:01:55.6]} 20... g4 {[%clk 0:01:10.8]} 21. g3
{[%clk 0:01:39]} 21... e3 {[%clk 0:01:08]} 22. Rf1 {[%clk 0:01:38.9]} 22...
exf2+ {[%clk 0:01:07.1]} 23. Rxf2 {[%clk 0:01:39]} 23... Be4 {[%clk 0:01:07.4]}
24. b4 {[%clk 0:01:27.3]} 24... Rfd8 {[%clk 0:00:41.7]} 25. a4 {[%clk
0:01:23.8]} 25... a6 {[%clk 0:00:36.5]} 26. a5 {[%clk 0:01:12.1]} 26... Rac8
{[%clk 0:00:35.4]} 27. Kd2 {[%clk 0:01:05.4]} 27... Rc6 {[%clk 0:00:28.8]} 28.
Rf1 {[%clk 0:00:56.7]} 28... Rdc8 {[%clk 0:00:28.2]} 29. Rfc1 {[%clk 0:00:55.9]}
29... Kf7 {[%clk 0:00:28.1]} 30. h5 {[%clk 0:00:38.8]} 30... b6 {[%clk
0:00:20.3]} 31. axb6 {[%clk 0:00:25.8]} 31... Rxb6 {[%clk 0:00:21.2]} 32. b5
{[%clk 0:00:25]} 32... axb5 {[%clk 0:00:21]} 33. cxb5 {[%clk 0:00:25.2]} 33...
Rxc3 {[%clk 0:00:20.2]} 34. Rxc3 {[%clk 0:00:25.8]} 34... Rxb5 {[%clk
0:00:20.6]} 35. Rc7+ {[%clk 0:00:25.8]} 35... Kg8 {[%clk 0:00:19.9]} 36. Rc8+
{[%clk 0:00:23.5]} 36... Kf7 {[%clk 0:00:20.1]} 37. Rh8 {[%clk 0:00:23.4]} 37...
Rb2+ {[%clk 0:00:19.8]} 38. Kc3 {[%clk 0:00:23]} 38... Rc2+ {[%clk 0:00:20]} 39.
Kb4 {[%clk 0:00:23]} 39... f4 {[%clk 0:00:19]} 40. Bxf4 {[%clk 0:00:20.6]} 40...
Bd5 {[%clk 0:00:14.6]} 41. Be5 {[%clk 0:00:17.5]} 41... Rc4+ {[%clk 0:00:14.4]}
42. Kb5 {[%clk 0:00:17.8]} 42... Rc3 {[%clk 0:00:13.7]} 43. Rxh6 {[%clk
0:00:17.7]} 43... Rc1 {[%clk 0:00:10.7]} 44. Rh7+ {[%clk 0:00:17.3]} 44... Kg8
{[%clk 0:00:10.2]} 45. Rg7+ {[%clk 0:00:17.6]} 45... Kf8 {[%clk 0:00:10.6]} 46.
h6 {[%clk 0:00:17.5]} 46... Rh1 {[%clk 0:00:11.5]} 47. h7 {[%clk 0:00:17.8]}
47... Be4 {[%clk 0:00:08.7]} 48. Rg8+ {[%clk 0:00:17.8]} 1-0

[Event "*** Titled Tuesday Blitz"]
[Site "Chess.com"]
[Date "2020.12.29"]
[Round "5"]
[White "Chamal_Gedgafov"]
[Black "vanyakuba"]
[Result "1-0"]
[WhiteElo "2229"]
[BlackElo "2464"]
[TimeControl "180+1"]
[EndTime "10:55:08 PST"]
[Termination "Chamal_Gedgafov won by resignation"]

1. e4 {[%clk 0:03:00.9]} 1... d5 {[%clk 0:02:59.8]} 2. exd5 {[%clk 0:02:59.8]}
2... Qxd5 {[%clk 0:03:00.7]} 3. Nc3 {[%clk 0:02:59.1]} 3... Qa5 {[%clk
0:03:00.8]} 4. d4 {[%clk 0:02:58.8]} 4... Nf6 {[%clk 0:03:01]} 5. Nf3 {[%clk
0:02:58.5]} 5... Bg4 {[%clk 0:03:00.8]} 6. h3 {[%clk 0:02:58.3]} 6... Bh5 {[%clk
0:03:01.1]} 7. g4 {[%clk 0:02:57.8]} 7... Bg6 {[%clk 0:03:01.4]} 8. Ne5 {[%clk
0:02:57.5]} 8... e6 {[%clk 0:03:01.2]} 9. h4 {[%clk 0:02:56.5]} 9... Bb4 {[%clk
0:03:00.5]} 10. Bd2 {[%clk 0:02:49.7]} 10... Qb6 {[%clk 0:02:59.9]} 11. a3
{[%clk 0:02:46.2]} 11... Bxc3 {[%clk 0:01:47.3]} 12. bxc3 {[%clk 0:02:43.6]}
12... Nbd7 {[%clk 0:01:21.8]} 13. h5 {[%clk 0:02:42.7]} 13... Be4 {[%clk
0:01:21.3]} 14. f3 {[%clk 0:02:31.5]} 14... Bc6 {[%clk 0:01:07.7]} 15. Nc4
{[%clk 0:02:22.3]} 15... Qa6 {[%clk 0:00:58.7]} 16. Nd6+ {[%clk 0:02:21.6]}
16... cxd6 {[%clk 0:00:59.6]} 17. Bxa6 {[%clk 0:02:21.1]} 17... bxa6 {[%clk
0:01:00.5]} 18. O-O {[%clk 0:02:18.5]} 18... Nb6 {[%clk 0:00:48.6]} 19. a4
{[%clk 0:02:04.6]} 19... Nc4 {[%clk 0:00:47.4]} 20. h6 {[%clk 0:01:55.3]} 20...
gxh6 {[%clk 0:00:46.2]} 21. Bxh6 {[%clk 0:01:54.4]} 21... Rg8 {[%clk 0:00:46.9]}
22. Qe2 {[%clk 0:01:37.1]} 22... Bd5 {[%clk 0:00:46.6]} 23. Rab1 {[%clk
0:01:35.3]} 23... Rg6 {[%clk 0:00:45.8]} 24. Bc1 {[%clk 0:01:31]} 24... h5
{[%clk 0:00:30.1]} 25. g5 {[%clk 0:01:30.6]} 25... h4 {[%clk 0:00:28.3]} 26. f4
{[%clk 0:01:26]} 26... h3 {[%clk 0:00:25.3]} 27. Kh2 {[%clk 0:01:24.1]} 27...
Ne4 {[%clk 0:00:21.5]} 28. Rb4 {[%clk 0:01:18]} 28... Nxc3 {[%clk 0:00:19.9]}
29. Qh5 {[%clk 0:01:11.1]} 29... O-O-O {[%clk 0:00:12.1]} 30. f5 {[%clk
0:01:00.2]} 30... exf5 {[%clk 0:00:04.9]} 31. Rxf5 {[%clk 0:00:58.8]} 31... Be6
{[%clk 0:00:04]} 32. Rxc4+ {[%clk 0:00:49.3]} 32... Bxc4 {[%clk 0:00:03.8]} 33.
Qf3 {[%clk 0:00:49.4]} 33... Be6 {[%clk 0:00:02.9]} 34. Qxc3+ {[%clk 0:00:47.8]}
34... Kd7 {[%clk 0:00:02.8]} 35. Rf6 {[%clk 0:00:43]} 35... Rc8 {[%clk 0:00:03]}
36. Qb2 {[%clk 0:00:36.6]} 36... Rgg8 {[%clk 0:00:02.6]} 37. Bf4 {[%clk
0:00:31.7]} 37... Rh8 {[%clk 0:00:02.4]} 38. g6 {[%clk 0:00:28.6]} 38... Rh4
{[%clk 0:00:02.3]} 39. gxf7 {[%clk 0:00:26.4]} 39... Rg4 {[%clk 0:00:02.7]} 40.
Qb7+ {[%clk 0:00:19]} 40... Rc7 {[%clk 0:00:02.9]} 41. Qxc7+ {[%clk 0:00:18.3]}
41... Kxc7 {[%clk 0:00:03.8]} 42. f8=Q {[%clk 0:00:16.9]} 42... Rg2+ {[%clk
0:00:04.7]} 43. Kh1 {[%clk 0:00:15.9]} 43... Bd5 {[%clk 0:00:03.5]} 44. Qxd6+
{[%clk 0:00:14.8]} 1-0

[Event "*** Titled Tuesday Blitz"]
[Site "Chess.com"]
[Date "2020.12.29"]
[Round "5"]
[White "MikhailSher"]
[Black "bylavochka"]
[Result "1-0"]
[WhiteElo "2375"]
[BlackElo "2129"]
[TimeControl "180+1"]
[EndTime "10:55:08 PST"]
[Termination "MikhailSher won by resignation"]

1. d4 {[%clk 0:03:00.9]} 1... Nf6 {[%clk 0:02:59.8]} 2. Bf4 {[%clk 0:02:54.5]}
2... g6 {[%clk 0:02:58.9]} 3. e3 {[%clk 0:02:54.3]} 3... Bg7 {[%clk 0:02:58.8]}
4. Nf3 {[%clk 0:02:54.5]} 4... d6 {[%clk 0:02:59.2]} 5. h3 {[%clk 0:02:54.9]}
5... O-O {[%clk 0:02:59.6]} 6. c3 {[%clk 0:02:55.3]} 6... Nbd7 {[%clk
0:02:59.9]} 7. Nbd2 {[%clk 0:02:55.8]} 7... b6 {[%clk 0:03:00.4]} 8. Be2 {[%clk
0:02:56.2]} 8... Bb7 {[%clk 0:03:00.7]} 9. O-O {[%clk 0:02:56.5]} 9... c5 {[%clk
0:03:01.4]} 10. Bh2 {[%clk 0:02:56.6]} 10... a6 {[%clk 0:02:58.5]} 11. Rc1
{[%clk 0:02:56.6]} 11... Rc8 {[%clk 0:02:50.2]} 12. Qb3 {[%clk 0:02:51.6]} 12...
Rc7 {[%clk 0:02:47.4]} 13. a4 {[%clk 0:02:29.6]} 13... Qa8 {[%clk 0:02:17.5]}
14. Qd1 {[%clk 0:02:19.5]} 14... Ne4 {[%clk 0:02:12.5]} 15. Nxe4 {[%clk
0:02:18.9]} 15... Bxe4 {[%clk 0:02:13.4]} 16. Bg3 {[%clk 0:02:15.8]} 16... Rfc8
{[%clk 0:02:11.4]} 17. Re1 {[%clk 0:02:14.7]} 17... Nf6 {[%clk 0:01:55.5]} 18.
Bf1 {[%clk 0:02:09.2]} 18... Bb7 {[%clk 0:01:53.6]} 19. Be2 {[%clk 0:02:05.8]}
19... Ne4 {[%clk 0:01:53.1]} 20. Bh2 {[%clk 0:02:01.6]} 20... Bc6 {[%clk
0:01:26.2]} 21. Ra1 {[%clk 0:02:00.1]} 21... Qb7 {[%clk 0:01:19.5]} 22. Bf4
{[%clk 0:01:59.2]} 22... b5 {[%clk 0:01:06.3]} 23. axb5 {[%clk 0:01:50.1]} 23...
axb5 {[%clk 0:01:07.2]} 24. Ra5 {[%clk 0:01:37.8]} 24... Ra8 {[%clk 0:00:54.8]}
25. Qa1 {[%clk 0:01:33.6]} 25... Rxa5 {[%clk 0:00:47.8]} 26. Qxa5 {[%clk
0:01:34.5]} 26... Rc8 {[%clk 0:00:43.9]} 27. Ra1 {[%clk 0:01:26.1]} 27... Ra8
{[%clk 0:00:43.6]} 28. Qxa8+ {[%clk 0:01:23.9]} 28... Qxa8 {[%clk 0:00:44.5]}
29. Rxa8+ {[%clk 0:01:23.8]} 29... Bxa8 {[%clk 0:00:45.2]} 30. Kf1 {[%clk
0:01:09.6]} 30... b4 {[%clk 0:00:35.6]} 31. c4 {[%clk 0:01:05.4]} 31... cxd4
{[%clk 0:00:30.7]} 32. exd4 {[%clk 0:01:04.2]} 32... g5 {[%clk 0:00:15.6]} 33.
Be3 {[%clk 0:01:02]} 33... f5 {[%clk 0:00:14.6]} 34. g3 {[%clk 0:00:31.1]} 34...
h6 {[%clk 0:00:09.6]} 35. h4 {[%clk 0:00:25.6]} 35... g4 {[%clk 0:00:09.2]} 36.
Ne1 {[%clk 0:00:20.6]} 36... e5 {[%clk 0:00:06.3]} 37. d5 {[%clk 0:00:16.2]}
37... Bf8 {[%clk 0:00:04.7]} 38. Nd3 {[%clk 0:00:16.1]} 38... Nc5 {[%clk
0:00:04.6]} 39. Nxb4 {[%clk 0:00:14]} 39... Bb7 {[%clk 0:00:03]} 40. Nc6 {[%clk
0:00:10.9]} 40... Bxc6 {[%clk 0:00:02.4]} 41. dxc6 {[%clk 0:00:11.8]} 41... Ne6
{[%clk 0:00:02.5]} 42. Bb6 {[%clk 0:00:07.7]} 42... d5 {[%clk 0:00:02.2]} 43.
cxd5 {[%clk 0:00:04.7]} 43... Nc7 {[%clk 0:00:01.2]} 1-0

[Event "*** Titled Tuesday Blitz"]
[Site "Chess.com"]
[Date "2020.12.29"]
[Round "5"]
[White "dosto07"]
[Black "BabyBoss31"]
[Result "0-1"]
[WhiteElo "2290"]
[BlackElo "2211"]
[TimeControl "180+1"]
[EndTime "10:55:09 PST"]
[Termination "BabyBoss31 won on time"]

1. e4 {[%clk 0:03:00.9]} 1... e6 {[%clk 0:02:58.9]} 2. d4 {[%clk 0:03:00.1]}
2... d5 {[%clk 0:02:59.8]} 3. Nd2 {[%clk 0:02:59.9]} 3... Nf6 {[%clk 0:02:58.1]}
4. e5 {[%clk 0:02:59.9]} 4... Nfd7 {[%clk 0:02:57.9]} 5. Bd3 {[%clk 0:03:00.5]}
5... c5 {[%clk 0:02:56.2]} 6. c3 {[%clk 0:03:00.6]} 6... Nc6 {[%clk 0:02:55.7]}
7. Ne2 {[%clk 0:02:59.4]} 7... cxd4 {[%clk 0:02:52.2]} 8. cxd4 {[%clk
0:02:59.1]} 8... f6 {[%clk 0:02:52.7]} 9. exf6 {[%clk 0:02:59.1]} 9... Nxf6
{[%clk 0:02:53.6]} 10. Nf3 {[%clk 0:02:59.3]} 10... Bd6 {[%clk 0:02:52.6]} 11.
O-O {[%clk 0:02:55.4]} 11... Qc7 {[%clk 0:02:52.8]} 12. Bg5 {[%clk 0:02:55]}
12... O-O {[%clk 0:02:52.2]} 13. Bh4 {[%clk 0:02:55.5]} 13... Bd7 {[%clk
0:02:45.2]} 14. Bg3 {[%clk 0:02:54.1]} 14... Rae8 {[%clk 0:02:43.8]} 15. Rc1
{[%clk 0:02:51.4]} 15... Bxg3 {[%clk 0:02:37.2]} 16. hxg3 {[%clk 0:02:47.3]}
16... Qb6 {[%clk 0:02:37.7]} 17. Nc3 {[%clk 0:02:42.9]} 17... Qxb2 {[%clk
0:02:07]} 18. Nb5 {[%clk 0:02:31]} 18... Qb4 {[%clk 0:01:44.6]} 19. Rb1 {[%clk
0:02:13.6]} 19... Qe7 {[%clk 0:01:42.5]} 20. Re1 {[%clk 0:02:11.4]} 20... Bc8
{[%clk 0:01:34.2]} 21. Ne5 {[%clk 0:02:01.4]} 21... a6 {[%clk 0:01:01.3]} 22.
Nc3 {[%clk 0:01:51]} 22... Nxe5 {[%clk 0:00:49.7]} 23. Rxe5 {[%clk 0:01:47.6]}
23... Qd6 {[%clk 0:00:41.8]} 24. Na4 {[%clk 0:01:37.4]} 24... Nd7 {[%clk
0:00:37.6]} 25. Qh5 {[%clk 0:01:25.5]} 25... Nf6 {[%clk 0:00:20.8]} 26. Qe2
{[%clk 0:01:20.6]} 26... Nd7 {[%clk 0:00:18.7]} 27. Qh5 {[%clk 0:00:57.3]} 27...
Nf6 {[%clk 0:00:17.8]} 28. Qh4 {[%clk 0:00:54.4]} 28... Qe7 {[%clk 0:00:16]} 29.
Nb6 {[%clk 0:00:51]} 29... g6 {[%clk 0:00:08]} 30. g4 {[%clk 0:00:49.5]} 30...
Nd7 {[%clk 0:00:07.5]} 31. Qxe7 {[%clk 0:00:43.6]} 31... Rxe7 {[%clk 0:00:08.4]}
32. Nxc8 {[%clk 0:00:39.3]} 32... Rxc8 {[%clk 0:00:06.3]} 33. Re3 {[%clk
0:00:32.9]} 33... Nf8 {[%clk 0:00:06.6]} 34. Rb6 {[%clk 0:00:31.5]} 34... Rc6
{[%clk 0:00:05.7]} 35. Rxc6 {[%clk 0:00:30.7]} 35... bxc6 {[%clk 0:00:06.6]} 36.
Bxa6 {[%clk 0:00:30.8]} 36... Ra7 {[%clk 0:00:07.1]} 37. Bc8 {[%clk 0:00:24.4]}
37... Kf7 {[%clk 0:00:06.8]} 38. a3 {[%clk 0:00:23.1]} 38... Ra4 {[%clk
0:00:06.6]} 39. Rd3 {[%clk 0:00:19.7]} 39... Ke7 {[%clk 0:00:05.6]} 40. Bb7
{[%clk 0:00:19]} 40... Kd7 {[%clk 0:00:05.3]} 41. Rc3 {[%clk 0:00:18.4]} 41...
Rxd4 {[%clk 0:00:04.6]} 42. Bxc6+ {[%clk 0:00:18.5]} 42... Kd6 {[%clk
0:00:04.5]} 43. f3 {[%clk 0:00:17.9]} 43... e5 {[%clk 0:00:03.6]} 44. Bb7 {[%clk
0:00:16.8]} 44... Ne6 {[%clk 0:00:04]} 45. Rc4 {[%clk 0:00:16.9]} 45... dxc4
{[%clk 0:00:03.9]} 0-1

[Event "*** Titled Tuesday Blitz"]
[Site "Chess.com"]
[Date "2020.12.29"]
[Round "5"]
[White "chessmachine14"]
[Black "zmeeed67"]
[Result "1/2-1/2"]
[WhiteElo "2243"]
[BlackElo "2390"]
[TimeControl "180+1"]
[EndTime "10:55:10 PST"]
[Termination "Game drawn by repetition"]

1. e4 {[%clk 0:03:00.9]} 1... Nc6 {[%clk 0:02:59.9]} 2. Nf3 {[%clk 0:02:59.5]}
2... d6 {[%clk 0:02:59.9]} 3. Bc4 {[%clk 0:02:46.8]} 3... Nf6 {[%clk 0:02:59.2]}
4. O-O {[%clk 0:02:45.5]} 4... Bg4 {[%clk 0:02:58.9]} 5. Re1 {[%clk 0:02:44.2]}
5... e5 {[%clk 0:02:58.2]} 6. c3 {[%clk 0:02:33.2]} 6... Be7 {[%clk 0:02:57.2]}
7. h3 {[%clk 0:02:32.9]} 7... Bh5 {[%clk 0:02:56.6]} 8. d4 {[%clk 0:02:28.4]}
8... O-O {[%clk 0:02:43.8]} 9. g4 {[%clk 0:02:06.4]} 9... Bg6 {[%clk 0:02:42.9]}
10. Nbd2 {[%clk 0:02:06.4]} 10... Re8 {[%clk 0:02:23.6]} 11. b4 {[%clk
0:01:51.3]} 11... exd4 {[%clk 0:02:21.7]} 12. cxd4 {[%clk 0:01:48.9]} 12... Nxb4
{[%clk 0:02:13.3]} 13. Qb3 {[%clk 0:01:45.9]} 13... Nc6 {[%clk 0:02:10.2]} 14.
Ng5 {[%clk 0:01:06.3]} 14... Rf8 {[%clk 0:01:45.7]} 15. Qxb7 {[%clk 0:00:51.3]}
15... Na5 {[%clk 0:01:44.5]} 16. Qa6 {[%clk 0:00:50.5]} 16... Nxc4 {[%clk
0:01:36.6]} 17. Qxc4 {[%clk 0:00:49]} 17... d5 {[%clk 0:01:34.1]} 18. exd5
{[%clk 0:00:44.5]} 18... Nxd5 {[%clk 0:01:31.1]} 19. Ngf3 {[%clk 0:00:44.4]}
19... Nf4 {[%clk 0:01:29.2]} 20. Kh2 {[%clk 0:00:42.4]} 20... Bd6 {[%clk
0:01:27.4]} 21. Ne5 {[%clk 0:00:42.2]} 21... Kh8 {[%clk 0:01:12.2]} 22. Ndf3
{[%clk 0:00:39.6]} 22... Ne6 {[%clk 0:01:08]} 23. d5 {[%clk 0:00:31.9]} 23...
Nc5 {[%clk 0:00:51.5]} 24. Bf4 {[%clk 0:00:29.7]} 24... Rb8 {[%clk 0:00:38.3]}
25. Kg1 {[%clk 0:00:19.7]} 25... Kg8 {[%clk 0:00:38]} 26. Nxg6 {[%clk
0:00:18.8]} 26... hxg6 {[%clk 0:00:37.9]} 27. Rad1 {[%clk 0:00:16.2]} 27... Rb2
{[%clk 0:00:36.3]} 28. Rd2 {[%clk 0:00:15.9]} 28... Rxd2 {[%clk 0:00:30.2]} 29.
Nxd2 {[%clk 0:00:15.9]} 29... Qf6 {[%clk 0:00:27.4]} 30. Bxd6 {[%clk 0:00:15.2]}
30... cxd6 {[%clk 0:00:27.6]} 31. Ne4 {[%clk 0:00:15]} 31... Qe5 {[%clk
0:00:26]} 32. Kg2 {[%clk 0:00:10.5]} 32... g5 {[%clk 0:00:20]} 33. Re2 {[%clk
0:00:08]} 33... Rc8 {[%clk 0:00:16.3]} 34. Nxc5 {[%clk 0:00:07.2]} 34... Rxc5
{[%clk 0:00:14]} 35. Qxc5 {[%clk 0:00:06.4]} 35... Qxe2 {[%clk 0:00:12.9]} 36.
Qxd6 {[%clk 0:00:06.6]} 36... Qe4+ {[%clk 0:00:13.4]} 37. Kg3 {[%clk 0:00:06.3]}
37... Qd3+ {[%clk 0:00:12.1]} 38. f3 {[%clk 0:00:06.5]} 38... Qd2 {[%clk
0:00:10.5]} 39. Qd8+ {[%clk 0:00:06.5]} 39... Kh7 {[%clk 0:00:10.6]} 40. d6
{[%clk 0:00:06.7]} 40... Qe1+ {[%clk 0:00:09.2]} 41. Kg2 {[%clk 0:00:06.6]}
41... Qe2+ {[%clk 0:00:09.5]} 42. Kg3 {[%clk 0:00:07]} 42... Qe1+ {[%clk
0:00:09.4]} 43. Kg2 {[%clk 0:00:07.4]} 43... Qe2+ {[%clk 0:00:09.2]} 44. Kg3
{[%clk 0:00:07.7]} 44... Qe1+ {[%clk 0:00:09.2]} 1/2-1/2